fUSD/lending_fUSD_20240412
["ID","MTS","AMOUNT","RATE_DAILY","PERIOD"]
[322295405,1712939488971,-2121.53,0.0005041,120]
[322295406,1712939488981,-488.43752188,0.0005041,120]
[322295407,1712939488990,-1410.1,0.0005041,120]
[322295408,1712939489001,-603.45,0.0005041,120]
[322295409,1712939489011,-2010.88,0.0005041,120]
[322295410,1712939489021,-500.0,0.0005041,120]
[322295411,1712939489030,-524.48,0.0005041,120]
[322295412,1712939489039,-500.0,0.0005041,120]
[322295413,1712939489049,-895.41,0.0005041,120]
[322295414,1712939489058,-2625.88,0.0005041,120]
[322295415,1712939489067,-2788.58,0.0005041,120]
[322295416,1712939489076,-1235.34,0.0005041,120]
[322295417,1712939489086,-665.73,0.0005041,120]
[322295418,1712939489095,-1020.56,0.0005041,120]
[322295419,1712939489105,-819.11,0.0005041,120]
[322295420,1712939489114,-565.07,0.0005041,120]
[322295421,1712939489123,-151.0,0.0005041,120]
[322295422,1712939489132,-500.0,0.0005041,120]
[322295423,1712939489141,-920.52,0.0005041,120]
[322295424,1712939489150,-584.81,0.0005041,120]
[322295425,1712939489159,-1006.65,0.0005041,120]
[322295426,1712939489169,-6172.84,0.0005041,120]
[322295427,1712939489178,-502.19,0.0005041,120]
[322295428,1712939489187,-1224.43,0.0005041,120]
[322295429,1712939489196,-701.12,0.0005041,120]
[322295430,1712939489205,-3794.47,0.0005041,120]
[322295431,1712939489214,-151.0,0.0005041,120]
[322295432,1712939489223,-500.0,0.0005041,120]
[322295433,1712939489232,-795.66,0.0005041,120]
[322295434,1712939489242,-608.21,0.0005041,120]
[322295435,1712939489253,-938.69,0.0005041,120]
[322295436,1712939489262,-1074.92,0.0005041,120]
[322295437,1712939489271,-705.22,0.0005041,120]
[322295438,1712939489280,-151.0,0.0005041,120]
[322295439,1712939489289,-151.0,0.0005041,120]
[322295440,1712939489298,-926.87,0.0005041,120]
[322295441,1712939489307,-2317.31,0.0005041,120]
[322295442,1712939489317,-566.69,0.0005041,120]
[322295443,1712939489326,-550.45,0.0005041,120]
[322295444,1712939489335,-1028.71,0.0005041,120]
[322295445,1712939489344,-500.0,0.0005041,120]
[322295446,1712939489353,-1045.05,0.0005041,120]
[322295447,1712939489362,-500.0,0.0005041,120]
[322295448,1712939489371,-1536.84,0.0005041,120]
[322295449,1712939489380,-224.69066821,0.0005041,120]
[322295450,1712939489389,-285.47652499,0.0005041,120]
[322295451,1712939489398,-500.0,0.0005041,120]
[322295452,1712939489407,-1599.82,0.0005041,120]
[322295453,1712939489416,-886.03,0.0005041,120]
[322295454,1712939489425,-500.0,0.0005041,120]
[322295455,1712939489434,-593.38,0.0005041,21]
[322295456,1712939489443,-868.49,0.0005041,120]
[322295457,1712939489453,-995.51,0.0005041,120]
[322295458,1712939489463,-753.01,0.0005041,120]
[322295459,1712939489472,-660.73,0.0005041,120]
[322295460,1712939489482,-500.0,0.0005041,120]
[322295461,1712939489491,-151.0,0.0005041,120]
[322295462,1712939489503,-2246.9,0.0005041,120]
[322295463,1712939489512,-224.23333333,0.00050411,120]
[322295464,1712939489521,-557.27,0.00050469,2]
[322295465,1712939489531,-3000.0,0.00050547,120]
[322295466,1712939489543,-151.0,0.0005063,120]
[322295467,1712939489553,-1378.025104,0.00050684,30]
[322295468,1712939489562,-275.60502,0.00050684,30]
[322295469,1712939489572,-393.02045847,0.00050684,120]
[322295470,1712939489583,-508.57,0.00050684,120]
[322295471,1712939489592,-500.0,0.00050684,120]
[322295472,1712939489602,-561.65,0.00050684,120]
[322295473,1712939489613,-500.0,0.00050684,120]
[322295474,1712939489624,-661.69,0.00050684,2]
[322295475,1712939489633,-525.48,0.00050684,120]
[322295476,1712939489642,-500.0,0.00050684,120]
[322295477,1712939489652,-500.0,0.00050684,120]
[322295478,1712939489662,-579.42,0.00050684,120]
[322295479,1712939489671,-500.0,0.00050684,120]
[322295480,1712939489680,-500.0,0.00050684,120]
[322295481,1712939489690,-500.0,0.00050684,120]
[322295482,1712939489796,-342.10394771,0.00050684,120]
[322295483,1712939489806,-718.46,0.00050684,120]
[322295484,1712939489815,-500.0,0.00050684,120]
[322295485,1712939489824,-500.0,0.00050684,120]
[322295486,1712939489834,-500.0,0.00050684,120]
[322295487,1712939489843,-500.0,0.00050684,120]
[322295488,1712939489853,-513.42,0.00050684,120]
[322295489,1712939489862,-595.54,0.00050684,2]
[322295490,1712939489871,-586.75,0.00050684,120]
[322295491,1712939489881,-206.6,0.00050684,120]
[322295492,1712939489890,-500.0,0.00050684,120]
[322295493,1712939489899,-500.0,0.00050684,120]
[322295494,1712939489908,-500.0,0.00050684,120]
[322295495,1712939489917,-704.2,0.00050684,120]
[322295496,1712939489927,-3000.0,0.00050684,120]
[322295497,1712939489936,-546.18,0.00050684,120]
[322295498,1712939489946,-500.0,0.00050684,120]
[322295499,1712939489956,-558.44,0.00050684,120]
[322295500,1712939489965,-500.0,0.00050684,120]
[322295501,1712939489975,-1352.77,0.00050684,120]
[322295502,1712939489984,-673.18,0.00050684,120]
[322295503,1712939489993,-500.0,0.00050684,120]
[322295504,1712939490003,-629.37,0.00050684,120]
[322295505,1712939490013,-500.0,0.00050684,120]
[322295506,1712939490023,-2203.64,0.00050684,120]
[322295507,1712939490032,-1162.01,0.00050684,120]
[322295508,1712939490041,-2667.34,0.00050684,120]
[322295509,1712939490051,-716.23,0.00050684,120]
[322295510,1712939490060,-1151.02,0.00050684,120]
[322295511,1712939490069,-500.0,0.00050684,120]
[322295512,1712939490079,-597.82,0.00050684,120]
[322295513,1712939490088,-634.43,0.00050684,120]
[322295514,1712939490098,-1280.3,0.00050684,120]
[322295515,1712939490107,-500.0,0.00050684,120]
[322295516,1712939490116,-1116.79,0.00050684,120]
[322295517,1712939490126,-500.0,0.00050684,120]
[322295518,1712939490135,-7302.32,0.00050684,120]
[322295519,1712939490145,-1813.94,0.00050684,120]
[322295520,1712939490156,-807.13,0.00050684,120]
[322295521,1712939490168,-500.0,0.00050684,120]
[322295522,1712939490178,-609.01,0.00050684,120]
[322295523,1712939490187,-519.31,0.00050684,120]
[322295524,1712939490196,-1010.89,0.00050684,120]
[322295525,1712939490205,-500.0,0.00050684,120]
[322295526,1712939490215,-2090.34,0.00050684,120]
[322295527,1712939490224,-670.23,0.00050684,120]
[322295528,1712939490236,-520.06,0.00050684,120]
[322295529,1712939490245,-500.0,0.00050684,120]
[322295530,1712939490257,-500.0,0.00050684,120]
[322295531,1712939490266,-568.18,0.00050684,120]
[322295532,1712939490275,-500.0,0.00050684,120]
[322295533,1712939490284,-500.0,0.00050684,120]
[322295534,1712939490294,-500.0,0.00050684,120]
[322295535,1712939490303,-500.0,0.00050684,120]
[322295536,1712939490312,-500.0,0.00050684,120]
[322295537,1712939490322,-1311.53,0.00050684,120]
[322295538,1712939490331,-1628.88,0.00050684,120]
[322295539,1712939490340,-515.58,0.00050684,120]
[322295540,1712939490350,-14006.78,0.00050684,120]
[322295541,1712939490359,-500.0,0.00050684,120]
[322295542,1712939490368,-803.87,0.00050684,120]
[322295543,1712939490377,-500.0,0.00050684,120]
[322295544,1712939490386,-500.0,0.00050684,120]
[322295545,1712939490396,-2680.68,0.00050684,120]
[322295546,1712939490405,-978.71,0.00050684,120]
[322295547,1712939490415,-2121.53,0.00050684,120]
[322295548,1712939490424,-1410.1,0.00050684,120]
[322295549,1712939490433,-603.45,0.00050684,120]
[322295550,1712939490443,-2010.88,0.00050684,120]
[322295551,1712939490453,-500.0,0.00050684,120]
[322295552,1712939490462,-524.48,0.00050684,120]
[322295553,1712939490471,-500.0,0.00050684,120]
[322295554,1712939490481,-895.41,0.00050684,120]
[322295555,1712939490490,-2625.88,0.00050684,120]
[322295556,1712939490500,-2788.58,0.00050684,120]
[322295557,1712939490510,-1235.34,0.00050684,120]
[322295558,1712939490520,-665.73,0.00050684,120]
[322295559,1712939490533,-1020.56,0.00050684,120]
[322295560,1712939490542,-819.11,0.00050684,120]
[322295561,1712939490552,-565.07,0.00050684,120]
[322295562,1712939490561,-920.52,0.00050684,120]
[322295563,1712939490570,-500.0,0.00050684,120]
[322295564,1712939490580,-584.81,0.00050684,120]
[322295565,1712939490589,-1006.65,0.00050684,120]
[322295566,1712939490599,-6172.84,0.00050684,120]
[322295567,1712939490609,-502.19,0.00050684,120]
[322295568,1712939490618,-1224.43,0.00050684,120]
[322295569,1712939490627,-3794.47,0.00050684,120]
[322295570,1712939490636,-701.12,0.00050684,120]
[322295571,1712939490645,-253.49813018,0.00050684,120]
[322295572,1712939490654,-795.66,0.00050684,120]
[322295573,1712939490664,-608.21,0.00050684,120]
[322295574,1712939490673,-938.69,0.00050684,120]
[322295575,1712939490683,-1074.92,0.00050684,120]
[322295576,1712939490692,-705.22,0.00050684,120]
[322295577,1712939490702,-926.87,0.00050684,120]
[322295578,1712939490713,-2317.31,0.00050684,120]
[322295579,1712939490722,-566.69,0.00050684,120]
[322295580,1712939490731,-550.45,0.00050684,120]
[322295581,1712939490740,-1028.71,0.00050684,120]
[322295582,1712939490752,-500.0,0.00050684,120]
[322295583,1712939490764,-1045.05,0.00050684,120]
[322295584,1712939490773,-500.0,0.00050684,120]
[322295585,1712939490783,-1536.84,0.00050684,120]
[322295586,1712939490795,-500.0,0.00050684,120]
[322295587,1712939490804,-1599.82,0.00050684,120]
[322295588,1712939490813,-886.03,0.00050684,120]
[322295589,1712939490822,-500.0,0.00050684,120]
[322295590,1712939490832,-593.38,0.00050684,21]
[322295591,1712939490842,-868.49,0.00050684,120]
[322295592,1712939490852,-995.51,0.00050684,120]
[322295593,1712939490862,-753.01,0.00050684,120]
[322295594,1712939490872,-660.73,0.00050684,120]
[322295595,1712939490881,-500.0,0.00050684,120]
[322295596,1712939490891,-2246.9,0.00050684,120]
[322295597,1712939490900,-299.999999,0.000507,7]
[322295598,1712939490909,-5828.28029921,0.0005074,2]
[322295599,1712939490918,-3000.0,0.00050821,120]
[322295600,1712939490927,-124729.15552237,0.000509,30]
[322295601,1712939490936,-508.57,0.00050958,120]
[322295602,1712939490945,-500.0,0.00050958,120]
[322295603,1712939490955,-561.65,0.00050958,120]
[322295604,1712939490965,-500.0,0.00050958,120]
[322295605,1712939490975,-661.69,0.00050958,2]
[322295606,1712939490986,-525.48,0.00050958,120]
[322295607,1712939490996,-396.53704286,0.00050958,120]
[322295608,1712939491017,-500.0,0.00050958,120]
[322295609,1712939491027,-579.42,0.00050958,120]
[322295610,1712939491037,-500.0,0.00050958,120]
[322295611,1712939491047,-500.0,0.00050958,120]
[322295612,1712939491057,-500.0,0.00050958,120]
[322295613,1712939491067,-718.46,0.00050958,120]
[322295614,1712939491077,-500.0,0.00050958,120]
[322295615,1712939491086,-500.0,0.00050958,120]
[322295616,1712939491096,-500.0,0.00050958,120]
[322295617,1712939491106,-500.0,0.00050958,120]
[322295618,1712939491116,-513.42,0.00050958,120]
[322295619,1712939491126,-595.54,0.00050958,2]
[322295620,1712939491136,-586.75,0.00050958,120]
[322295621,1712939491146,-500.0,0.00050958,120]
[322295622,1712939491156,-230.43740418,0.00050958,120]
[322295623,1712939491166,-500.0,0.00050958,120]
[322295624,1712939491175,-704.2,0.00050958,120]
[322295625,1712939491185,-3000.0,0.00050958,120]
[322295626,1712939491194,-546.18,0.00050958,120]
[322295627,1712939491203,-500.0,0.00050958,120]
[322295628,1712939491213,-500.0,0.00050958,120]
[322295629,1712939491223,-1352.77,0.00050958,120]
[322295630,1712939491233,-673.18,0.00050958,120]
[322295631,1712939491243,-500.0,0.00050958,120]
[322295632,1712939491260,-629.37,0.00050958,120]
[322295633,1712939491270,-500.0,0.00050958,120]
[322295634,1712939491280,-2203.64,0.00050958,120]
[322295635,1712939491290,-1162.01,0.00050958,120]
[322295636,1712939491300,-2667.34,0.00050958,120]
[322295637,1712939491309,-716.23,0.00050958,120]
[322295638,1712939491319,-1151.02,0.00050958,120]
[322295639,1712939491328,-500.0,0.00050958,120]
[322295640,1712939491337,-597.82,0.00050958,120]
[322295641,1712939491347,-634.43,0.00050958,120]
[322295642,1712939491356,-1280.3,0.00050958,120]
[322295643,1712939491460,-500.0,0.00050958,120]
[322295644,1712939491470,-1116.79,0.00050958,120]
[322295645,1712939491480,-500.0,0.00050958,120]
[322295646,1712939491489,-7302.32,0.00050958,120]
[322295647,1712939491500,-1813.94,0.00050958,120]
[322295648,1712939491513,-807.13,0.00050958,120]
[322295649,1712939491523,-500.0,0.00050958,120]
[322295650,1712939491534,-609.01,0.00050958,120]
[322295651,1712939491545,-519.31,0.00050958,120]
[322295652,1712939491556,-1010.89,0.00050958,120]
[322295653,1712939491565,-500.0,0.00050958,120]
[322295654,1712939491574,-2090.34,0.00050958,120]
[322295655,1712939491583,-670.23,0.00050958,120]
[322295656,1712939491593,-520.06,0.00050958,120]
[322295657,1712939491603,-571.93978906,0.00050958,120]
[322295658,1712939491613,-568.18,0.00050958,120]
[322295659,1712939491622,-225.67264352,0.00050958,120]
[322295660,1712939491632,-340.79199396,0.00050958,120]
[322295661,1712939491642,-500.0,0.00050958,120]
[322295662,1712939491652,-500.0,0.00050958,120]
[322295663,1712939491661,-500.0,0.00050958,120]
[322295664,1712939491671,-1311.53,0.00050958,120]
[322295665,1712939491680,-1628.88,0.00050958,120]
[322295666,1712939491690,-515.58,0.00050958,120]
[322295667,1712939491699,-14006.78,0.00050958,120]
[322295668,1712939491709,-500.0,0.00050958,120]
[322295669,1712939491719,-500.0,0.00050958,120]
[322295670,1712939491728,-803.87,0.00050958,120]
[322295671,1712939491738,-500.0,0.00050958,120]
[322295672,1712939491748,-2680.68,0.00050958,120]
[322295673,1712939491761,-978.71,0.00050958,120]
[322295674,1712939491771,-2121.53,0.00050958,120]
[322295675,1712939491780,-1410.1,0.00050958,120]
[322295676,1712939491790,-603.45,0.00050958,120]
[322295677,1712939491799,-2010.88,0.00050958,120]
[322295678,1712939491809,-524.48,0.00050958,120]
[322295679,1712939491818,-241.87381404,0.00050958,120]
[322295680,1712939491827,-500.0,0.00050958,120]
[322295681,1712939491836,-895.41,0.00050958,120]
[322295682,1712939491846,-2625.88,0.00050958,120]
[322295683,1712939491857,-2788.58,0.00050958,120]
[322295684,1712939491867,-1235.34,0.00050958,120]
[322295685,1712939491877,-665.73,0.00050958,120]
[322295686,1712939491887,-1020.56,0.00050958,120]
[322295687,1712939491896,-819.11,0.00050958,120]
[322295688,1712939491907,-565.07,0.00050958,120]
[322295689,1712939491916,-500.0,0.00050958,120]
[322295690,1712939491925,-920.52,0.00050958,120]
[322295691,1712939491935,-584.81,0.00050958,120]
[322295692,1712939491944,-1006.65,0.00050958,120]
[322295693,1712939491953,-6172.84,0.00050958,120]
[322295694,1712939491962,-502.19,0.00050958,120]
[322295695,1712939491972,-1224.43,0.00050958,120]
[322295696,1712939491981,-3794.47,0.00050958,120]
[322295697,1712939491991,-701.12,0.00050958,120]
[322295698,1712939492005,-795.66,0.00050958,120]
[322295699,1712939492014,-608.21,0.00050958,120]
[322295700,1712939492024,-938.69,0.00050958,120]
[322295701,1712939492034,-1074.92,0.00050958,120]
[322295702,1712939492043,-705.22,0.00050958,120]
[322295703,1712939492053,-926.87,0.00050958,120]
[322295704,1712939492063,-2317.31,0.00050958,120]
[322295705,1712939492072,-566.69,0.00050958,120]
[322295706,1712939492081,-550.45,0.00050958,120]
[322295707,1712939492091,-1028.71,0.00050958,120]
[322295708,1712939492101,-500.0,0.00050958,120]
[322295709,1712939492110,-1045.05,0.00050958,120]
[322295710,1712939492119,-500.0,0.00050958,120]
[322295711,1712939492129,-1536.84,0.00050958,120]
[322295712,1712939492138,-500.0,0.00050958,120]
[322295713,1712939492147,-1599.82,0.00050958,120]
[322295714,1712939492156,-886.03,0.00050958,120]
[322295715,1712939492165,-500.0,0.00050958,120]
[322295716,1712939492175,-593.38,0.00050958,21]
[322295717,1712939492198,-995.51,0.00050958,120]
[322295718,1712939492217,-868.49,0.00050958,120]
[322295719,1712939492236,-753.01,0.00050958,120]
[322295720,1712939492257,-660.73,0.00050958,120]
[322295721,1712939492274,-500.0,0.00050958,120]
[322295722,1712939492292,-2246.9,0.00050958,120]
[322295723,1712939492309,-100000.0,0.00051,51]
[322295724,1712939492327,-150.0,0.00051,29]
[322295725,1712939492346,-150.0,0.00051,15]
[322295726,1712939492363,-150.0,0.00051,120]
[322295727,1712939492382,-46924.53374609,0.00051,2]
[322295728,1712939492405,-500000.0,0.00051,120]
[322295729,1712939492418,-1105.89433692,0.00051,10]
[322295730,1712939492435,-150.0,0.00051,120]
[322295731,1712939492451,-159.55,0.00051,7]
[322295732,1712939492464,-171.35,0.00051,7]
[322295733,1712939492479,-205.1,0.00051006,2]
[322295734,1712939492495,-224.23333333,0.00051014,120]
[322295735,1712939492512,-3000.0,0.00051095,120]
[322295736,1712939492527,-508.57,0.00051232,120]
[322295737,1712939492543,-500.0,0.00051232,120]
[322295738,1712939492559,-561.65,0.00051232,120]
[322295739,1712939492575,-500.0,0.00051232,120]
[322295740,1712939492591,-661.69,0.00051232,2]
[322295741,1712939492606,-525.48,0.00051232,120]
[322295742,1712939492621,-500.0,0.00051232,120]
[322295743,1712939492636,-579.42,0.00051232,120]
[322295744,1712939492651,-500.0,0.00051232,120]
[322295745,1712939492665,-583.50496074,0.00051232,120]
[322295746,1712939492681,-260.96036787,0.00051232,120]
[322295747,1712939492696,-718.46,0.00051232,120]
[322295748,1712939492713,-500.0,0.00051232,120]
[322295749,1712939492727,-500.0,0.00051232,120]
[322295750,1712939492737,-500.0,0.00051232,120]
[322295751,1712939492747,-500.0,0.00051232,120]
[322295752,1712939492758,-513.42,0.00051232,120]
[322295753,1712939492767,-595.54,0.00051232,2]
[322295754,1712939492777,-586.75,0.00051232,120]
[322295755,1712939492787,-500.0,0.00051232,120]
[322295756,1712939492797,-500.0,0.00051232,120]
[322295757,1712939492806,-704.2,0.00051232,120]
[322295758,1712939492816,-3000.0,0.00051232,120]
[322295759,1712939492826,-546.18,0.00051232,120]
[322295760,1712939492836,-500.0,0.00051232,120]
[322295761,1712939492846,-500.0,0.00051232,120]
[322295762,1712939492856,-1352.77,0.00051232,120]
[322295763,1712939492865,-673.18,0.00051232,120]
[322295764,1712939492875,-500.0,0.00051232,120]
[322295765,1712939492885,-629.37,0.00051232,120]
[322295766,1712939492894,-500.0,0.00051232,120]
[322295767,1712939492904,-2203.64,0.00051232,120]
[322295768,1712939492913,-1162.01,0.00051232,120]
[322295769,1712939492924,-2667.34,0.00051232,120]
[322295770,1712939492934,-716.23,0.00051232,120]
[322295771,1712939492943,-1151.02,0.00051232,120]
[322295772,1712939492953,-500.0,0.00051232,120]
[322295773,1712939492963,-597.82,0.00051232,120]
[322295774,1712939492973,-634.43,0.00051232,120]
[322295775,1712939492983,-1280.3,0.00051232,120]
[322295776,1712939492993,-500.0,0.00051232,120]
[322295777,1712939493007,-1116.79,0.00051232,120]
[322295778,1712939493017,-500.0,0.00051232,120]
[322295779,1712939493027,-7302.32,0.00051232,120]
[322295780,1712939493037,-1813.94,0.00051232,120]
[322295781,1712939493047,-807.13,0.00051232,120]
[322295782,1712939493056,-500.0,0.00051232,120]
[322295783,1712939493066,-609.01,0.00051232,120]
[322295784,1712939493076,-519.31,0.00051232,120]
[322295785,1712939493086,-1010.89,0.00051232,120]
[322295786,1712939493096,-2090.34,0.00051232,120]
[322295787,1712939493105,-670.23,0.00051232,120]
[322295788,1712939493115,-520.06,0.00051232,120]
[322295789,1712939493124,-568.18,0.00051232,120]
[322295790,1712939493134,-500.0,0.00051232,120]
[322295791,1712939493143,-500.0,0.00051232,120]
[322295792,1712939493478,-500.0,0.00051232,120]
[322295793,1712939493495,-1311.53,0.00051232,120]
[322295794,1712939493512,-1628.88,0.00051232,120]
[322295795,1712939493523,-515.58,0.00051232,120]
[322295796,1712939493533,-14006.78,0.00051232,120]
[322295797,1712939493544,-500.0,0.00051232,120]
[322295798,1712939493554,-803.87,0.00051232,120]
[322295799,1712939493563,-500.0,0.00051232,120]
[322295800,1712939493573,-500.0,0.00051232,120]
[322295801,1712939493582,-2680.68,0.00051232,120]
[322295802,1712939493592,-978.71,0.00051232,120]
[322295803,1712939493601,-2121.53,0.00051232,120]
[322295804,1712939493611,-1410.1,0.00051232,120]
[322295805,1712939493621,-603.45,0.00051232,120]
[322295806,1712939493631,-2010.88,0.00051232,120]
[322295807,1712939493641,-524.48,0.00051232,120]
[322295808,1712939493650,-561.76,0.00051232,120]
[322295809,1712939493660,-895.41,0.00051232,120]
[322295810,1712939493669,-2625.88,0.00051232,120]
[322295811,1712939493678,-2788.58,0.00051232,120]
[322295812,1712939493689,-1235.34,0.00051232,120]
[322295813,1712939493698,-665.73,0.00051232,120]
[322295814,1712939493708,-1020.56,0.00051232,120]
[322295815,1712939493718,-819.11,0.00051232,120]
[322295816,1712939493727,-565.07,0.00051232,120]
[322295817,1712939493736,-610.27988533,0.00051232,120]
[322295818,1712939493746,-920.52,0.00051232,120]
[322295819,1712939493760,-584.81,0.00051232,120]
[322295820,1712939493769,-1006.65,0.00051232,120]
[322295821,1712939493778,-6172.84,0.00051232,120]
[322295822,1712939493788,-502.19,0.00051232,120]
[322295823,1712939493797,-1224.43,0.00051232,120]
[322295824,1712939493806,-701.12,0.00051232,120]
[322295825,1712939493815,-3794.47,0.00051232,120]
[322295826,1712939493825,-795.66,0.00051232,120]
[322295827,1712939493834,-608.21,0.00051232,120]
[322295828,1712939493843,-938.69,0.00051232,120]
[322295829,1712939493853,-1074.92,0.00051232,120]
[322295830,1712939493862,-705.22,0.00051232,120]
[322295831,1712939493871,-926.87,0.00051232,120]
[322295832,1712939493880,-2317.31,0.00051232,120]
[322295833,1712939493890,-566.69,0.00051232,120]
[322295834,1712939493900,-550.45,0.00051232,120]
[322295835,1712939493909,-1028.71,0.00051232,120]
[322295836,1712939493918,-294.68014981,0.00051232,120]
[322295837,1712939493927,-1045.05,0.00051232,120]
[322295838,1712939493936,-500.0,0.00051232,120]
[322295839,1712939493945,-1536.84,0.00051232,120]
[322295840,1712939493954,-500.0,0.00051232,120]
[322295841,1712939493963,-1599.82,0.00051232,120]
[322295842,1712939493972,-886.03,0.00051232,120]
[322295843,1712939493981,-500.0,0.00051232,120]
[322295844,1712939493991,-593.38,0.00051232,21]
[322295845,1712939494001,-995.51,0.00051232,120]
[322295846,1712939494010,-868.49,0.00051232,120]
[322295847,1712939494019,-753.01,0.00051232,120]
[322295848,1712939494028,-660.73,0.00051232,120]
[322295849,1712939494038,-500.0,0.00051232,120]
[322295850,1712939494047,-2246.9,0.00051232,120]
[322295851,1712939494057,-1000.0,0.000513,30]
[322295852,1712939494066,-1000.0,0.000513,30]
[322295853,1712939494075,-150.0,0.000513,30]
[322295854,1712939494086,-3000.0,0.00051369,120]
[322295855,1712939494095,-484.18943964,0.000515,2]
[322295856,1712939494105,-508.57,0.00051506,120]
[322295857,1712939494114,-500.0,0.00051506,120]
[322295858,1712939494123,-561.65,0.00051506,120]
[322295859,1712939494132,-500.0,0.00051506,120]
[322295860,1712939494142,-661.69,0.00051506,2]
[322295861,1712939494151,-525.48,0.00051506,120]
[322295862,1712939494160,-500.0,0.00051506,120]
[322295863,1712939494170,-579.42,0.00051506,120]
[322295864,1712939494179,-718.46,0.00051506,120]
[322295865,1712939494188,-500.0,0.00051506,120]
[322295866,1712939494198,-500.0,0.00051506,120]
[322295867,1712939494207,-513.42,0.00051506,120]
[322295868,1712939494216,-595.54,0.00051506,2]
[322295869,1712939494225,-586.75,0.00051506,120]
[322295870,1712939494235,-430.24,0.00051506,120]
[322295871,1712939494244,-241.74,0.00051506,120]
[322295872,1712939494255,-704.2,0.00051506,120]
[322295873,1712939494264,-3000.0,0.00051506,120]
[322295874,1712939494275,-546.18,0.00051506,120]
[322295875,1712939494285,-500.0,0.00051506,120]
[322295876,1712939494294,-500.0,0.00051506,120]
[322295877,1712939494304,-1352.77,0.00051506,120]
[322295878,1712939494313,-673.18,0.00051506,120]
[322295879,1712939494322,-629.37,0.00051506,120]
[322295880,1712939494331,-500.0,0.00051506,120]
[322295881,1712939494341,-2203.64,0.00051506,120]
[322295882,1712939494350,-1162.01,0.00051506,120]
[322295883,1712939494359,-716.23,0.00051506,120]
[322295884,1712939494370,-2667.34,0.00051506,120]
[322295885,1712939494380,-1151.02,0.00051506,120]
[322295886,1712939494389,-500.0,0.00051506,120]
[322295887,1712939494398,-597.82,0.00051506,120]
[322295888,1712939494407,-634.43,0.00051506,120]
[322295889,1712939494417,-1280.3,0.00051506,120]
[322295890,1712939494426,-500.0,0.00051506,120]
[322295891,1712939494435,-1116.79,0.00051506,120]
[322295892,1712939494444,-372.49380996,0.00051506,120]
[322295893,1712939494453,-7302.32,0.00051506,120]
[322295894,1712939494463,-1813.94,0.00051506,120]
[322295895,1712939494473,-807.13,0.00051506,120]
[322295896,1712939494482,-500.0,0.00051506,120]
[322295897,1712939494491,-609.01,0.00051506,120]
[322295898,1712939494504,-519.31,0.00051506,120]
[322295899,1712939494513,-1010.89,0.00051506,120]
[322295900,1712939494523,-2090.34,0.00051506,120]
[322295901,1712939494533,-670.23,0.00051506,120]
[322295902,1712939494542,-520.06,0.00051506,120]
[322295903,1712939494553,-568.18,0.00051506,120]
[322295904,1712939494562,-500.0,0.00051506,120]